fUST/lending_fUST_20250809
["ID","MTS","AMOUNT","RATE_DAILY","PERIOD"]
[378068783,1754716265513,-616.96,0.00025753,2]
[378068785,1754716265523,-484.51,0.00025753,2]
[378068787,1754716265532,-389.38239756,0.00025753,2]
[378068789,1754716265541,-878.7,0.00025753,2]
[378068791,1754716265551,-397.98280604,0.00025753,2]
[378068793,1754716265562,-588.03,0.00025753,2]
[378068796,1754716265572,-2205.74,0.00025753,2]
[378068798,1754716265582,-460.0,0.00025753,2]
[378068800,1754716265592,-627.1,0.00025753,2]
[378068802,1754716265602,-812.53,0.00025753,2]
[378068804,1754716265612,-502.96,0.00025753,2]
[378068806,1754716265621,-1473.86,0.00025753,2]
[378068808,1754716265631,-1466.73,0.00025753,2]
[378068810,1754716265642,-460.0,0.00025753,2]
[378068812,1754716265651,-734.31,0.00025753,2]
[378068814,1754716265660,-460.0,0.00025753,2]
[378068816,1754716265670,-584.11,0.00025753,2]
[378068818,1754716265681,-460.0,0.00025753,2]
[378068820,1754716265690,-1086.66,0.00025753,2]
[378068822,1754716265700,-1230.88,0.00025753,2]
[378068824,1754716265710,-1364.78,0.00025753,2]
[378068826,1754716265720,-460.0,0.00025753,2]
[378068828,1754716265730,-740.11,0.00025753,2]
[378068830,1754716265739,-1560.26,0.00025753,2]
[378068832,1754716265748,-460.0,0.00025753,2]
[378068834,1754716265757,-1863.28,0.00025753,2]
[378068835,1754716265766,-560.11,0.00025753,2]
[378068838,1754716265776,-619.47,0.00025753,2]
[378068839,1754716265785,-3886.89,0.00025753,2]
[378068841,1754716265795,-972.03,0.00025753,2]
[378068843,1754716265804,-460.0,0.00025753,2]
[378068845,1754716265816,-461.6,0.00025753,2]
[378068847,1754716265826,-443.0,0.00025754,2]
[378068849,1754716265837,-3500.0,0.0002576,2]
[378068851,1754716265846,-3500.0,0.0002576,2]
[378068853,1754716265855,-660.0,0.00025779,2]
[378068855,1754716265864,-168.0,0.00025817,2]
[378068857,1754716265874,-151.788045,0.00025843,2]
[378068859,1754716265884,-1800.0,0.00025868,2]
[378068861,1754716265893,-455.47774934,0.00025868,2]
[378068863,1754716265903,-1000.0,0.00025868,2]
[378068865,1754716265912,-587.0,0.00025884,2]
[378068867,1754716265922,-201.0,0.00025884,2]
[378068869,1754716265931,-251.0,0.00025895,2]
[378068871,1754716265941,-160.0,0.0002594,3]
[378068873,1754716265951,-1500.0,0.00025968,2]
[378068875,1754716265960,-1006.31553769,0.00025968,2]
[378068877,1754716265970,-1006.44846835,0.00025968,2]
[378068879,1754716265980,-193.78623359,0.00026,7]
[378068881,1754716265989,-520.21985888,0.00026,2]
[378068882,1754716265997,-19900.0,0.00026,2]
[378068884,1754716266007,-38764.9862298,0.00026,10]
[378068886,1754716266016,-161.0,0.00026,5]
[378068888,1754716266025,-50000.0,0.00026,7]
[378068890,1754716266036,-151.0,0.00026,7]
[378068892,1754716266045,-151.0,0.00026,7]
[378068894,1754716266055,-151.0,0.00026,7]
[378068896,1754716266068,-151.0,0.00026,7]
[378068898,1754716266077,-206.113152,0.00026,7]
[378068900,1754716266086,-151.0,0.00026,7]
[378068902,1754716266096,-151.0,0.00026,7]
[378068904,1754716266105,-319.058462,0.00026,7]
[378068906,1754716266114,-319.058462,0.00026,7]
[378068908,1754716266128,-298.830364,0.00026,7]
[378068910,1754716266137,-223.993383,0.00026,7]
[378068912,1754716266146,-223.993383,0.00026,7]
[378068914,1754716266156,-151.0,0.00026,7]
[378068916,1754716266166,-948.97252,0.00026,7]
[378068918,1754716266176,-948.97252,0.00026,7]
[378068920,1754716266185,-160.0,0.00026,10]
[378068922,1754716266195,-842.95011917,0.00026,10]
[378068924,1754716266206,-216.61183532,0.00026,10]
[378068926,1754716266216,-527.77735381,0.00026,10]
[378068928,1754716266226,-312.16666667,0.00026,10]
[378068930,1754716266235,-160.0,0.00026,10]
[378068932,1754716266245,-151.0,0.00026,7]
[378068934,1754716266255,-151.0,0.00026,7]
[378068936,1754716266264,-160.0,0.00026,10]
[378068938,1754716266274,-211.383814,0.00026,7]
[378068940,1754716266284,-461.55179734,0.00026,10]
[378068941,1754716266293,-211.383814,0.00026,7]
[378068943,1754716266303,-215.40758176,0.00026,10]
[378068945,1754716266316,-323.985552,0.00026,7]
[378068947,1754716266326,-323.985552,0.00026,7]
[378068949,1754716266336,-160.0,0.00026,10]
[378068951,1754716266346,-250.0,0.00026021,2]
[378068953,1754716266356,-1837.27,0.00026026,2]
[378068955,1754716266366,-796.65,0.00026026,2]
[378068957,1754716266375,-2104.15,0.00026026,2]
[378068959,1754716266385,-3687.5,0.00026027,2]
[378068961,1754716266395,-460.0,0.00026027,2]
[378068963,1754716266405,-579.98,0.00026027,2]
[378068965,1754716266415,-460.0,0.00026027,2]
[378068967,1754716266425,-472.0,0.00026027,2]
[378068969,1754716266434,-562.43,0.00026027,2]
[378068971,1754716266443,-460.0,0.00026027,2]
[378068973,1754716266452,-585.92,0.00026027,2]
[378068975,1754716266462,-244.76511776,0.00026027,2]
[378068977,1754716266471,-737.74,0.00026027,2]
[378068979,1754716266482,-1186.16,0.00026027,2]
[378068981,1754716266498,-844.33,0.00026027,2]
[378068983,1754716266513,-5779.76,0.00026027,2]
[378068985,1754716266527,-460.0,0.00026027,2]
[378068987,1754716266537,-1359.95,0.00026027,2]
[378068989,1754716266547,-677.65,0.00026027,2]
[378068991,1754716266557,-673.74,0.00026027,2]
[378068993,1754716266571,-460.0,0.00026027,2]
[378068995,1754716266580,-1248.09,0.00026027,2]
[378068997,1754716266590,-2614.39,0.00026027,2]
[378068999,1754716266600,-1565.54,0.00026027,2]
[378069001,1754716266608,-805.41,0.00026027,2]
[378069002,1754716266618,-720.99,0.00026027,2]
[378069004,1754716266627,-460.0,0.00026027,2]
[378069006,1754716266637,-2540.53,0.00026027,2]
[378069008,1754716266646,-542.13076698,0.00026027,2]
[378069011,1754716266657,-2680.87,0.00026027,2]
[378069012,1754716266666,-626.96,0.00026027,2]
[378069015,1754716266677,-1055.29,0.00026027,2]
[378069017,1754716266687,-831.45,0.00026027,2]
[378069019,1754716266696,-531.14,0.00026027,2]
[378069021,1754716266706,-1352.54,0.00026027,2]
[378069022,1754716266716,-460.0,0.00026027,2]
[378069024,1754716266725,-484.51,0.00026027,2]
[378069026,1754716266735,-616.96,0.00026027,2]
[378069028,1754716266745,-878.7,0.00026027,2]
[378069030,1754716266754,-588.03,0.00026027,2]
[378069032,1754716266764,-2205.74,0.00026027,2]
[378069034,1754716266773,-460.0,0.00026027,2]
[378069036,1754716266783,-627.1,0.00026027,2]
[378069038,1754716266792,-812.53,0.00026027,2]
[378069040,1754716266802,-502.96,0.00026027,2]
[378069042,1754716266815,-1473.86,0.00026027,2]
[378069044,1754716266824,-1466.73,0.00026027,2]
[378069046,1754716266833,-734.31,0.00026027,2]
[378069048,1754716266843,-584.11,0.00026027,2]
[378069050,1754716266854,-460.0,0.00026027,2]
[378069052,1754716266863,-409.66115639,0.00026027,2]
[378069054,1754716266874,-1086.66,0.00026027,2]
[378069056,1754716266883,-1230.88,0.00026027,2]
[378069058,1754716266893,-1364.78,0.00026027,2]
[378069060,1754716266903,-460.0,0.00026027,2]
[378069062,1754716266913,-740.11,0.00026027,2]
[378069064,1754716266922,-460.0,0.00026027,2]
[378069066,1754716266931,-1863.28,0.00026027,2]
[378069068,1754716266941,-1560.26,0.00026027,2]
[378069070,1754716266950,-560.11,0.00026027,2]
[378069072,1754716266959,-619.47,0.00026027,2]
[378069074,1754716266969,-3886.89,0.00026027,2]
[378069076,1754716266979,-972.03,0.00026027,2]
[378069078,1754716266989,-460.0,0.00026027,2]
[378069081,1754716266998,-461.6,0.00026027,2]
[378069082,1754716267008,-443.0,0.00026028,2]
[378069084,1754716267018,-1008.0,0.00026128,2]
[378069086,1754716267027,-971.0,0.00026158,2]
[378069088,1754716267036,-2150.0,0.00026158,2]
[378069090,1754716267045,-636.0,0.00026158,2]
[378069092,1754716267054,-191.14665694,0.0002616,2]
[378069094,1754716267066,-250.0,0.000262,7]
[378069096,1754716267075,-250.0,0.000262,7]
[378069098,1754716267084,-4127.49863329,0.000263,7]
[378069107,1754716267168,-461.78228761,0.00021917,2]
[378069109,1754716267178,-250.0,0.00021926,2]
[378069111,1754716267187,-250.0,0.00021926,2]
[378069113,1754716267197,-250.0,0.00021926,2]
[378069115,1754716267206,-250.0,0.00021926,2]
[378069117,1754716267216,-551.85,0.00022191,2]
[378069119,1754716267225,-10872.50136671,0.000263,7]
[378069121,1754716267235,-1837.27,0.000263,2]
[378069123,1754716267245,-796.65,0.000263,2]
[378069125,1754716267254,-2104.15,0.000263,2]
[378069127,1754716267263,-3687.5,0.00026301,2]
[378069129,1754716267273,-460.0,0.00026301,2]
[378069131,1754716267282,-579.98,0.00026301,2]
[378069133,1754716267291,-460.0,0.00026301,2]
[378069135,1754716267300,-472.0,0.00026301,2]
[378069136,1754716267312,-562.43,0.00026301,2]
[378069138,1754716267321,-460.0,0.00026301,2]
[378069140,1754716267331,-585.92,0.00026301,2]
[378069143,1754716267341,-737.74,0.00026301,2]
[378069144,1754716267351,-1186.16,0.00026301,2]
[378069146,1754716267360,-24.99712835,0.00026301,2]
[378069149,1754716267372,-819.33287165,0.00026301,2]
[378069151,1754716267383,-3382.42841835,0.00026301,2]
[378069305,1754716269077,500.0,0.00021916,2]
[378069308,1754716269104,385.56484604,0.00021916,2]
[378069312,1754716269136,500.0,0.00021916,2]
[378069316,1754716269165,510.21897973,0.00021916,2]
[378069320,1754716269192,500.0,0.00021916,2]
[378069325,1754716269228,191.47266687,0.00021916,2]
[378069330,1754716269262,500.0,0.00021916,2]
[378069334,1754716269288,500.0,0.00021916,2]
[378069383,1754716269748,5000.0,0.00021917,2]
[378069463,1754716270498,300.0,0.00021915,2]
[378069471,1754716270566,500.0,0.00021916,2]
[378069475,1754716270593,500.0,0.00021916,2]
[378069479,1754716270622,500.0,0.00021916,2]
[378069484,1754716270660,500.0,0.00021916,2]
[378069487,1754716270687,500.0,0.00021916,2]
[378069492,1754716270716,647.08768498,0.00021916,2]
[378069495,1754716270742,500.0,0.00021916,2]
[378069499,1754716270770,500.0,0.00021916,2]
[378069500,1754716270796,502.91829637,0.00021916,2]
[378069501,1754716270825,500.0,0.00021916,2]
[378069502,1754716270854,403.17995766,0.00021916,2]
[378069503,1754716270886,500.0,0.00021916,2]
[378069504,1754716270914,300.0,0.00021916,2]
[378069508,1754716270942,500.0,0.00021916,2]
[378069513,1754716270975,500.0,0.00021916,2]
[378069517,1754716271008,500.0,0.00021916,2]
[378069521,1754716271041,500.0,0.00021916,2]
[378069527,1754716271081,500.0,0.00021916,2]
[378069531,1754716271110,500.0,0.00021916,2]
[378069535,1754716271150,500.0,0.00021916,2]
[378069540,1754716271183,500.0,0.00021916,2]
[378070098,1754716276993,5000.0,0.00021917,2]
[378071342,1754716291173,202.184685,0.0002143,2]
[378071444,1754716292342,2038.88868013,0.00021917,2]
[378071447,1754716292364,2961.11131987,0.00021917,2]
[378071506,1754716292956,8857.0695773,0.000199,2]
[378071518,1754716293068,8857.0695771,0.00021655,2]
[378071866,1754716296722,197.0,0.00021916,2]
[378071955,1754716297656,505.96282948,0.00021917,2]
[378072426,1754716302655,1719.96682748,0.00021817,2]
[378072822,1754716307717,5000.0,0.00021917,2]
[378073611,1754716316034,4201.81986877,0.00021817,2]
[378073614,1754716316056,32300.0,0.00021817,2]
[378073618,1754716316078,32300.0,0.00021817,2]
[378073621,1754716316101,32300.0,0.00021817,2]
[378073624,1754716316122,32300.0,0.00021817,2]
[378073627,1754716316149,32300.0,0.00021817,2]
[378073631,1754716316173,3247.88785023,0.00021817,2]
[378073783,1754716317673,516.26368614,0.00031697,30]
[378074164,1754716323663,300.0,0.00021916,2]
[378074165,1754716324485,5000.0,0.00021917,2]
[378074166,1754716336560,1122.34,0.000219,2]
[378074167,1754716340232,5000.0,0.00021917,2]
[378074168,1754716356550,5000.0,0.00021917,2]
[378074169,1754716372595,5000.0,0.00021917,2]
[378074170,1754716383722,300.0,0.00021916,2]
[378074171,1754716387798,325.84694412,0.00021817,2]
[378074172,1754716388306,471.98727665,0.00021917,2]
[378074173,1754716417480,265.48462101,0.00021817,2]
[378074174,1754716420878,315.347564,0.00021298,2]
[378074175,1754716442315,300.0,0.00021916,2]
[378074176,1754716473459,500.0,0.00021916,2]
[378074177,1754716473489,500.0,0.00021916,2]
[378074178,1754716473526,468.72926015,0.00021916,2]
[378074179,1754716473557,500.0,0.00021916,2]
[378074180,1754716473587,263.66204228,0.00021916,2]
[378074181,1754716485446,3418.71444156,0.000199,2]
[378074182,1754716485472,5015.64212546,0.000199,2]
[378074183,1754716485713,8434.35656699,0.00021655,2]
[378074184,1754716491921,153.6089052,0.00021916,2]
[378074185,1754716502630,359.30244366,0.00021817,2]
[378074186,1754716502754,300.0,0.00021916,2]
[378074187,1754716502787,300.0,0.00021916,2]
[378074188,1754716502965,300.0,0.00021916,2]
[378074189,1754716507013,1200.0,0.00021916,2]
[378074190,1754716510045,16237.08995869,0.00021213,2]
[378074191,1754716510070,8662.91004131,0.00021213,2]
[378074192,1754716510872,1228.13,0.00021907,10]
[378074193,1754716521248,1023.44,0.00021907,10]
[378074194,1754716523675,209.4144809,0.00021177,2]
[378074195,1754716532680,852.86,0.00021907,10]
[378074196,1754716544261,1098.63,0.00021907,10]
[378074197,1754716552728,176.98974734,0.00021817,2]
[378074198,1754716555768,915.52,0.00021907,10]
[378074199,1754716563106,300.0,0.00021916,2]
[378074200,1754716567354,762.94,0.00021907,10]
[378074201,1754716575002,198.52341889,0.00021259,2]
[378074202,1754716577625,666.0,0.00021181,2]
[378074203,1754716579606,635.78,0.00021907,10]
[378074206,1754716591303,529.82,0.00021907,10]
[378074207,1754716596751,1200.0,0.00021916,2]
[378074208,1754716601838,441.51,0.00021907,10]
[378074209,1754716612261,367.93,0.00021907,10]
[378074210,1754716622592,300.0,0.00021916,2]
[378074211,1754716636899,306.61,0.00021907,10]
[378074212,1754716641324,12422.99231156,0.00021817,2]
[378074213,1754716641348,32300.0,0.00021817,2]
[378074214,1754716641380,32300.0,0.00021817,2]
[378074215,1754716641417,24746.19732886,0.00021817,2]
[378074216,1754716641441,32300.0,0.00021817,2]
[378074217,1754716641464,32300.0,0.00021817,2]
[378074218,1754716641487,32300.0,0.00021817,2]
[378074219,1754716641510,32300.0,0.00021817,2]
[378074220,1754716641533,32300.0,0.00021817,2]
[378074221,1754716641556,32300.0,0.00021817,2]
[378074222,1754716641579,32300.0,0.00021817,2]
[378074223,1754716641602,16326.74875842,0.00021817,2]
[378074224,1754716646410,386.874563,0.00013699,2]
[378074225,1754716646636,386.874563,0.00020187,2]
[378074226,1754716648847,255.51,0.00021907,10]
[378074228,1754716658188,5000.0,0.00021916,2]
[378074229,1754716660918,212.92,0.00021907,10]
[378074230,1754716666880,9731.07211558,0.000199,2]
[378074231,1754716666910,44.85828917,0.000199,2]
[378074232,1754716666957,9775.93040475,0.00021655,2]
[378074233,1754716668117,431.7,0.00021907,3]
[378074234,1754716671374,177.43,0.00021907,10]
[378074235,1754716674332,5000.0,0.00021916,2]
[378074236,1754716675712,244.63410554,0.00021817,2]
[378074237,1754716678735,215.85,0.00021907,3]
[378074238,1754716683112,887.2,0.00021907,10]
[378074239,1754716683267,300.0,0.00021916,2]
[378074240,1754716689385,647.58,0.00021907,3]
[378074241,1754716689803,5000.0,0.00021916,2]
[378074242,1754716700747,692.17208784,0.00021817,2]
[378074243,1754716706976,5000.0,0.00021916,2]
[378074244,1754716722519,3882.6451127,0.00021916,2]
[378074245,1754716722543,1117.3548873,0.00021916,2]
[378074246,1754716738772,5000.0,0.00021916,2]
[378074247,1754716742889,300.0,0.00021916,2]
[378074248,1754716749199,151.0,0.00021,3]
[378074249,1754716749483,151.0,0.000198,2]
[378074250,1754716749901,151.0,0.000185,2]
[378074251,1754716750216,151.0,0.000173,2]
[378074252,1754716750499,151.0,0.00016,2]
[378074253,1754716750826,151.0,0.000148,2]
[378074254,1754716751143,151.0,0.000135,2]
[378074255,1754716751451,151.0,0.000123,2]
[378074256,1754716751747,151.0,0.00011,2]
[378074257,1754716754634,5000.0,0.00021916,2]
[378074260,1754716770505,5000.0,0.00021916,2]
[378074261,1754716774256,1825.22638129,0.00020664,2]
[378074262,1754716786224,5000.0,0.00021916,2]
[378074263,1754716798439,353.97949464,0.00021817,2]
[378074264,1754716802286,4375.49581975,0.00021916,2]
[378074265,1754716802649,300.0,0.00021916,2]
[378074266,1754716802678,300.0,0.00021916,2]
[378074267,1754716804964,2368.94341702,0.00021817,2]
[378074268,1754716804989,32300.0,0.00021817,2]
[378074269,1754716805014,32300.0,0.00021817,2]
[378074270,1754716805041,32300.0,0.00021817,2]
[378074271,1754716805065,32300.0,0.00021817,2]
[378074272,1754716805089,32300.0,0.00021817,2]
[378074273,1754716805113,32300.0,0.00021817,2]
[378074274,1754716805137,32300.0,0.00021817,2]
[378074275,1754716805161,6860.38565262,0.00021817,2]
[378074276,1754716806798,300.0,0.00021916,2]
[378074277,1754716809497,1200.0,0.00021916,2]
[378074278,1754716811330,5501.47406585,0.00021817,2]
[378074279,1754716811520,150.59680682,0.00027137,30]
[378074285,1754716862965,1110.09,0.00021907,3]
[378074286,1754716862995,300.0,0.00021916,2]
[378074287,1754716873612,555.05,0.00021907,3]
[378074288,1754716876542,198.32152844,0.00021259,2]
[378074289,1754716880315,9121.29903038,0.000199,2]
[378074290,1754716880388,7153.37972271,0.00021655,2]
[378074291,1754716880415,1967.91930756,0.00021655,2]
[378074309,1754716884239,277.52,0.00021907,3]
[378074310,1754716893278,10000.0,0.00020965,2]
[378074311,1754716895176,832.6,0.00021907,3]
[378074312,1754716895265,5000.0,0.00021916,2]
[378074313,1754716923614,300.0,0.00021916,2]
[378074314,1754716967568,13921.96069244,0.00021817,2]
[378074315,1754716967592,32300.0,0.00021817,2]
[378074316,1754717052222,302.57127419,0.0002145,2]
[378074317,1754717079835,8512.56730202,0.000199,2]
[378074318,1754717093759,5000.0,0.0002145,2]
[378074319,1754717102291,4453.0,0.0002145,2]
[378074320,1754717110483,5000.0,0.0002145,2]
[378074321,1754717126394,1023.64813353,0.0002145,2]
[378074322,1754717126424,3976.35186647,0.0002145,2]
[378074323,1754717140791,1000.0,0.00020811,2]
[378074324,1754717141945,5000.0,0.0002145,2]
[378074326,1754717158385,5000.0,0.0002145,2]
[378074327,1754717174283,5000.0,0.0002145,2]
[378074331,1754717214220,221.09583884,8.7e-07,2]
[378074332,1754717243403,484.0,0.00023,60]
[378074333,1754717267629,8230.62948237,0.000199,2]
[378074335,1754717282862,3871.92281232,0.0002145,2]
[378074336,1754717282894,1128.07718768,0.0002145,2]
[378074339,1754717298597,508.21693618,0.00031711,120]
[378074340,1754717298861,5000.0,0.0002145,2]
[378074343,1754717314370,5000.0,0.0002145,2]
[378074344,1754717316254,996.37037024,0.00019717,2]
[378074345,1754717323491,150.9999996,0.00031711,120]
[378074347,1754717331138,5000.0,0.0002145,2]
[378074348,1754717336187,5019.88569544,0.00031711,30]
[378074398,1754717432207,-439.565,0.00021654,2]
[378074400,1754717432220,-40.435,0.00021654,2]
[378074401,1754717432230,-8230.62948225,0.00021655,2]
[378074403,1754717432239,-237.0,0.00021716,2]
[378074405,1754717432249,-300.0,0.00021716,2]
[378074408,1754717432258,-8689.62956576,0.00021717,2]
[378074410,1754717432268,-53883.75026491,0.00021717,2]
[378074412,1754717432277,-154.09,0.0002173,10]
[378074413,1754717432286,-770.5,0.0002173,10]
[378074415,1754717432296,-500.0,0.0002174,2]
[378074417,1754717432305,-500.0,0.0002174,2]
[378074419,1754717432314,-507.03436841,0.0002174,2]
[378074420,1754717432323,-27562.24802502,0.0002174,2]
[378074422,1754717432332,-500.0,0.00021741,2]
[378074424,1754717432342,-8689.62956573,0.00021742,2]
[378074426,1754717432351,-8689.62956573,0.00021767,2]
[378074428,1754717432360,-8689.62956573,0.00021792,2]
[378074430,1754717432370,-151.0,0.000218,3]
[378074432,1754717432380,-500.0,0.00021816,2]
[378074433,1754717432389,-335.47495746,0.00021816,2]
[378074435,1754717432398,-960.30992268,0.00021816,2]
[378074436,1754717432407,-960.30992268,0.00021816,2]
[378074438,1754717432416,-967.99240206,0.00021816,2]
[378074439,1754717432426,-967.99240206,0.00021816,2]
[378074440,1754717432435,-967.99240206,0.00021816,2]
[378074441,1754717432444,-967.99240206,0.00021816,2]
[378074442,1754717432454,-967.99240206,0.00021816,2]
[378074443,1754717432464,-967.99240206,0.00021816,2]
[378074444,1754717432473,-967.99240206,0.00021816,2]
[378074445,1754717432482,-967.99240206,0.00021816,2]
[378074446,1754717432492,-967.99240206,0.00021816,2]
[378074447,1754717432501,-967.99240206,0.00021816,2]
[378074448,1754717432514,-967.99240206,0.00021816,2]
[378074449,1754717432523,-967.99240206,0.00021816,2]
[378074450,1754717432533,-967.99240206,0.00021816,2]
[378074451,1754717432545,-967.99240206,0.00021816,2]
[378074452,1754717432554,-979.8051907,0.00021816,2]
[378074453,1754717432565,-979.8051907,0.00021816,2]
[378074454,1754717432574,-979.8051907,0.00021816,2]
[378074455,1754717432585,-180.88306421,0.00021816,2]
[378074456,1754717434503,1708.78641579,0.00030136,120]
[378074466,1754717438226,-500.0,0.00021739,2]
[378074467,1754717438235,-167.44826316,0.00021739,2]
[378074468,1754717438245,-500.0,0.00021739,2]
[378074469,1754717438254,-500.0,0.00021739,2]
[378074470,1754717438263,-500.0,0.00021739,2]
[378074471,1754717438272,-500.0,0.00021739,2]
[378074472,1754717438282,-500.0,0.00021739,2]
[378074473,1754717438291,-500.0,0.00021739,2]
[378074474,1754717438302,-500.0,0.00021739,2]
[378074475,1754717438311,-334.65412031,0.00021739,2]
[378074476,1754717438320,-500.0,0.00021739,2]
[378074477,1754717438330,-500.0,0.00021739,2]
[378074478,1754717438339,-500.0,0.00021739,2]
[378074479,1754717438348,-500.0,0.00021739,2]
[378074480,1754717438357,-500.0,0.00021739,2]
[378074481,1754717438367,-317.36454604,0.00021739,2]
[378074482,1754717438376,-500.0,0.00021739,2]
[378074483,1754717438386,-500.0,0.00021739,2]
[378074484,1754717438395,-525.0,0.00021739,2]
[378074485,1754717438404,-500.0,0.00021739,2]
[378074486,1754717438413,-522.84806822,0.00021739,2]
[378074487,1754717438422,-500.0,0.00021739,2]
[378074488,1754717438431,-399.88348808,0.00021739,2]
[378074489,1754717438441,-500.0,0.00021739,2]
[378074490,1754717438450,-500.0,0.00021739,2]
[378074491,1754717438459,-500.0,0.00021739,2]
[378074492,1754717438468,-500.0,0.00021739,2]
[378074493,1754717438477,-500.0,0.00021739,2]
[378074494,1754717438487,-500.0,0.00021739,2]
[378074495,1754717438496,-500.0,0.00021739,2]
[378074496,1754717438506,-500.0,0.00021739,2]
[378074497,1754717438518,-500.0,0.00021739,2]
[378074498,1754717438527,-500.0,0.00021739,2]
[378074499,1754717438536,-500.0,0.00021739,2]
[378074500,1754717438546,-500.0,0.00021739,2]
[378074501,1754717438555,-500.0,0.00021739,2]
[378074502,1754717438564,-500.0,0.00021739,2]
[378074503,1754717438574,-500.0,0.00021739,2]
[378074504,1754717438583,-500.0,0.00021739,2]
[378074505,1754717438592,-500.0,0.00021739,2]
[378074506,1754717438603,-500.0,0.00021739,2]
[378074507,1754717438612,-535.60043487,0.00021739,2]
[378074508,1754717438621,-500.0,0.00021739,2]
[378074509,1754717438631,-500.0,0.00021739,2]
[378074510,1754717438640,-500.0,0.00021739,2]
[378074511,1754717438650,-500.0,0.00021739,2]
[378074512,1754717438659,-500.0,0.00021739,2]
[378074513,1754717438668,-500.0,0.00021739,2]
[378074514,1754717438678,-500.0,0.00021739,2]
[378074515,1754717438687,-500.0,0.00021739,2]
[378074516,1754717438697,-500.0,0.00021739,2]
[378074517,1754717438707,-500.0,0.00021739,2]
[378074518,1754717438717,-500.0,0.00021739,2]
[378074519,1754717438726,-500.0,0.00021739,2]
[378074520,1754717438736,-798.92212649,0.00021816,2]
[378074521,1754717438746,-979.8051907,0.00021816,2]
[378074522,1754717438755,-979.8051907,0.00021816,2]
[378074523,1754717438765,-979.8051907,0.00021816,2]
[378074524,1754717438774,-979.8051907,0.00021816,2]
[378074525,1754717438784,-979.8051907,0.00021816,2]
[378074526,1754717438795,-323778.03930756,0.00021817,2]
[378074527,1754717438805,-200.0,0.00021817,10]
[378074528,1754717438815,-200.0,0.00021817,10]
[378074529,1754717438824,-282.323273,0.00021817,10]
[378074530,1754717438834,-8689.62956573,0.00021817,2]
[378074531,1754717438844,-500.0,0.00021873,2]
[378074532,1754717438853,-500.0,0.00021873,2]
[378074533,1754717438863,-500.3720936,0.00021873,2]
[378074534,1754717438873,-276.70454535,0.00021873,2]
[378074535,1754717438882,-500.0,0.00021873,2]
[378074536,1754717438891,-501.97193752,0.00021873,2]
[378074537,1754717438900,-500.0,0.00021873,2]
[378074538,1754717438910,-502.70441836,0.00021873,2]
[378074539,1754717438920,-500.0,0.00021873,2]
[378074540,1754717438929,-500.0,0.00021873,2]
[378074541,1754717438939,-500.0,0.00021873,2]
[378074542,1754717438948,-500.32928835,0.00021873,2]
[378074543,1754717438957,-500.0,0.00021873,2]
[378074544,1754717438966,-500.0,0.00021873,2]